bitfinex/quotes_SOLUSD_20250401
["timestamp","ask_amount","ask_price","bid_price","bid_amount"]
[1743505239810,7.32243601,127.94,127.93,225.08]
[1743505240306,7.32243601,127.94,127.89,0.03]
[1743505240487,148.1269,127.96,127.89,0.03]
[1743505240488,35.30803601,127.9,127.89,0.03]
[1743505240829,27.3672,127.89,127.86,225.13]
[1743505241001,7.32243601,127.88,127.86,225.13]
[1743505241503,27.32243601,127.87,127.86,225.13]
[1743505241908,27.32243601,127.87,127.86,225.1]
[1743505242105,27.32243601,127.87,127.86,231.98]
[1743505242423,27.32243601,127.87,127.83,0.03]
[1743505242606,27.32243601,127.85,127.83,0.03]
[1743505242803,7.8222,127.84,127.83,0.03]
[1743505243695,7.8222,127.84,127.83,6.91]
[1743505245705,15.14463601,127.84,127.83,0.03]
[1743505245899,20.0,127.82,127.81,0.03]
[1743505246107,27.32243601,127.82,127.81,6.91]
[1743505246495,27.32243601,127.82,127.76,0.31432314]
[1743505246696,20.0,127.81,127.79,227.9983307]
[1743505247099,7.8247,127.8,127.79,227.9983307]
[1743505248102,7.8247,127.8,127.79,234.8983307]
[1743505250836,7.8247,127.8,127.79,264.8983307]
[1743505251724,7.8247,127.8,127.79,234.8983307]
[1743505252111,15.14713601,127.8,127.79,234.8983307]
[1743505252313,34.70893601,127.8,127.78,225.3]
[1743505253832,27.3865,127.8,127.79,6.88]
[1743505254032,34.70893601,127.8,127.79,6.88]
[1743505254526,34.70893601,127.8,127.78,225.3]
[1743505254828,7.32243601,127.79,127.76,0.31432314]
[1743505255005,7.32243601,127.79,127.76,30.31432314]
[1743505256129,7.32243601,127.79,127.77,6.88]
[1743505256711,15.14773601,127.79,127.78,225.32]
[1743505258137,15.14773601,127.79,127.78,225.34]
[1743505259435,27.3865,127.8,127.78,225.34]
[1743505259617,7.32243601,127.79,127.77,6.88]
[1743505261442,7.8259,127.78,127.77,6.88]
[1743505262216,7.8259,127.78,127.77,6.86]
[1743505262437,15.14833601,127.78,127.76,30.03]
[1743505262642,15.14833601,127.78,127.77,6.86]
[1743505264232,15.14833601,127.78,127.77,6.89]
[1743505266041,15.14833601,127.78,127.76,0.03]
[1743505266245,7.32243601,127.77,127.76,0.03]
[1743505266718,7.32243601,127.77,127.76,225.41]
[1743505267341,7.32243601,127.77,127.76,232.27]
[1743505267517,7.32243601,127.77,127.76,225.41]
[1743505267726,7.32243601,127.77,127.76,232.27]
[1743505268348,15.14893601,127.77,127.76,232.27]
[1743505268832,7.8265,127.77,127.76,232.27]
[1743505269034,15.14893601,127.77,127.76,232.27]
[1743505269920,15.14893601,127.77,127.76,225.4]
[1743505271049,15.14893601,127.77,127.76,232.26]
[1743505272636,7.8265,127.77,127.76,232.26]
[1743505273025,7.8265,127.77,127.76,232.54432314]
[1743505273748,15.14893601,127.77,127.76,232.54432314]
[1743505273957,7.8265,127.77,127.76,232.54432314]
[1743505275641,81.7,127.83,127.79,20.28432314]
[1743505275642,27.38,127.83,127.79,20.28432314]
[1743505275842,34.70243601,127.83,127.81,0.28432314]
[1743505277855,7.32243601,127.82,127.8,6.86]
[1743505278039,34.70243601,127.83,127.8,6.86]
[1743505278363,27.38,127.83,127.81,0.28432314]
[1743505278751,27.38,127.83,127.8,18.64964886]
[1743505279854,27.38,127.83,127.81,6.86]
[1743505283851,27.38,127.83,127.82,0.14216157]
[1743505284065,7.8228,127.83,127.82,18.933972]
[1743505286036,0.063,127.84,127.82,18.933972]
[1743505287939,0.063,127.84,127.81,6.86]
[1743505288456,7.38543601,127.84,127.81,6.86]
[1743505288641,7.38543601,127.84,127.82,6.86]
[1743505289037,7.38543601,127.84,127.83,225.32]
[1743505289961,15.20763601,127.84,127.82,6.86]
[1743505294763,7.32243601,127.83,127.8,0.14216157]
[1743505294966,7.32243601,127.83,127.81,6.86]
[1743505296565,7.32243601,127.82,127.81,6.86]
[1743505296769,15.14593601,127.82,127.81,232.18]
[1743505297863,15.14593601,127.82,127.81,225.32]
[1743505298053,15.14593601,127.82,127.81,232.18]
[1743505299254,7.8235,127.82,127.81,232.18]
[1743505299446,15.14593601,127.82,127.81,232.18]
[1743505299766,15.14593601,127.82,127.81,232.21]
[1743505300267,7.8235,127.82,127.81,232.21]
[1743505300568,15.14593601,127.82,127.81,232.21]
[1743505301071,15.14593601,127.82,127.81,225.34]
[1743505302266,15.14593601,127.82,127.81,232.2]
[1743505302658,15.14593601,127.82,127.81,225.34]
[1743505302959,15.14593601,127.82,127.81,232.2]
[1743505303158,73.82213601,127.82,127.81,225.34]
[1743505303355,73.82213601,127.82,127.76,0.17216157]
[1743505303551,7.32243601,127.8,127.76,0.17216157]
[1743505304571,27.3822,127.82,127.78,0.14216157]
[1743505304879,7.8235,127.82,127.78,18.933972]
[1743505305660,15.14593601,127.82,127.78,18.933972]
[1743505306873,15.14593601,127.82,127.79,225.34]
[1743505307375,7.32243601,127.81,127.79,225.34]
[1743505308454,7.32243601,127.81,127.79,255.34]
[1743505309777,7.8247,127.8,127.79,255.34]
[1743505313384,15.14713601,127.8,127.79,255.34]
[1743505313575,15.14713601,127.8,127.79,232.2]
[1743505316877,15.14713601,127.8,127.79,225.34]
[1743505317077,15.14713601,127.8,127.79,232.2]
[1743505319607,7.8247,127.8,127.79,232.2]
[1743505319902,0.063,127.82,127.79,232.34216157]
[1743505320476,0.063,127.82,127.8,0.14216157]
[1743505321201,7.38543601,127.82,127.79,232.2]
[1743505321898,0.063,127.82,127.79,232.2]
[1743505322102,7.38543601,127.82,127.79,232.2]
[1743505322285,0.063,127.82,127.79,232.2]
[1743505322483,0.063,127.82,127.8,0.14216157]
[1743505324487,0.063,127.82,127.8,26.758472]
[1743505324695,0.063,127.82,127.8,46.758472]
[1743505325005,0.063,127.82,127.81,26.505772]
[1743505325179,0.063,127.82,127.81,34.329872]
[1743505325376,0.063,127.84,127.83,20.28432314]
[1743505325580,0.063,127.84,127.83,45.793972]
[1743505326778,0.063,127.84,127.83,271.113972]
[1743505327300,0.063,127.84,127.83,278.936772]
[1743505327682,0.063,127.84,127.83,271.113972]
[1743505328284,0.063,127.84,127.83,232.32216157]
[1743505328685,0.063,127.84,127.83,251.113972]
[1743505329586,0.063,127.84,127.83,232.18]
[1743505331587,27.38543601,127.84,127.83,225.32]
[1743505332099,27.38543601,127.84,127.83,232.18]
[1743505332486,27.38543601,127.84,127.83,225.3]
[1743505332687,27.38543601,127.84,127.82,225.3]
[1743505332887,27.32243601,127.83,127.82,225.3]
[1743505333087,20.0,127.83,127.82,225.3]
[1743505333600,35.14523601,127.83,127.82,225.3]
[1743505333791,35.14523601,127.83,127.82,232.16]
[1743505334195,35.14523601,127.83,127.78,0.14216157]
[1743505334402,7.32243601,127.82,127.77,0.14216157]
[1743505335393,7.32243601,127.82,127.78,6.86]
[1743505335786,7.8241,127.81,127.78,6.86]
[1743505336185,15.14613601,127.82,127.78,6.86]
[1743505336386,15.20913601,127.82,127.78,6.86]
[1743505336686,15.20913601,127.82,127.79,225.32]
[1743505337700,7.8867,127.82,127.79,225.32]
[1743505337909,15.20913601,127.82,127.79,225.32]
[1743505338204,15.20913601,127.82,127.8,38.933972]
[1743505338205,0.063,127.82,127.8,38.933972]
[1743505338510,0.063,127.82,127.8,40.575272]
[1743505339992,0.063,127.82,127.81,7.8241]
[1743505340286,0.063,127.82,127.81,0.14216157]
[1743505342097,0.063,127.82,127.81,7.00216157]
[1743505342307,0.063,127.82,127.81,6.86]
[1743505342812,7.38543601,127.82,127.79,225.32]
[1743505342982,0.063,127.82,127.8,6.86]
[1743505343587,7.38543601,127.82,127.8,6.86]
[1743505343994,0.063,127.82,127.8,6.86]
[1743505344400,0.063,127.82,127.79,225.32]
[1743505344590,7.32243601,127.81,127.8,6.88]
[1743505345503,7.38543601,127.82,127.8,6.88]
[1743505346015,0.063,127.82,127.8,6.88]
[1743505348000,7.38543601,127.82,127.8,6.88]
[1743505348414,7.8241,127.81,127.8,6.88]
[1743505348619,7.8866,127.82,127.8,6.88]
[1743505350415,7.32243601,127.81,127.79,225.32]
[1743505350619,7.32243601,127.8,127.79,225.32]
[1743505350916,7.32243601,127.8,127.79,232.22]
[1743505351309,7.32243601,127.81,127.79,232.22]
[1743505352423,20.0,127.81,127.79,232.22]
[1743505352603,7.38543601,127.82,127.79,232.22]
[1743505352806,15.20913601,127.82,127.79,232.22]
[1743505355328,7.32243601,127.81,127.79,232.22]
[1743505356511,15.20913601,127.82,127.79,232.22]
[1743505356826,0.063,127.82,127.8,0.14216157]
[1743505357025,0.063,127.82,127.8,18.933972]
[1743505358825,0.063,127.82,127.81,232.24]
[1743505359125,7.38543601,127.82,127.81,232.24]
[1743505359504,0.063,127.82,127.81,232.38216157]
[1743505359712,0.063,127.82,127.81,232.24]
[1743505362018,0.063,127.82,127.81,251.173972]
[1743505362229,0.063,127.82,127.81,271.173972]
[1743505362414,0.063,127.82,127.81,278.998072]
[1743505363412,0.063,127.82,127.81,251.173972]
[1743505363610,0.063,127.82,127.81,232.38216157]
[1743505364032,0.063,127.82,127.81,232.32]
[1743505364334,7.38543601,127.82,127.81,225.36]
[1743505364540,7.38543601,127.82,127.81,232.32]
[1743505364915,15.20893601,127.82,127.81,232.32]
[1743505365740,7.8865,127.82,127.81,232.32]
[1743505366035,15.20893601,127.82,127.81,232.32]
[1743505366337,7.8865,127.82,127.81,232.32]
[1743505367537,7.8865,127.82,127.81,225.36]
[1743505367721,7.8865,127.82,127.81,232.32]
[1743505368239,15.20893601,127.82,127.81,232.32]
[1743505369934,20.0,127.8,127.79,0.03]
[1743505370121,27.32243601,127.8,127.79,232.31]
[1743505370322,27.32243601,127.8,127.79,225.37]
[1743505370523,27.32243601,127.8,127.79,232.31]
[1743505371946,35.14713601,127.8,127.79,232.31]
[1743505374353,90.12028005,127.8,127.77,225.39]
[1743505374565,7.32243601,127.78,127.77,225.39]
[1743505374730,7.32243601,127.78,127.77,232.33]
[1743505375426,7.32243601,127.78,127.77,225.39]
[1743505375631,7.32243601,127.78,127.77,232.33]
[1743505376131,82.79784404,127.8,127.77,232.33]
[1743505376132,7.8247,127.8,127.77,232.33]
[1743505376545,7.8243,127.81,127.77,232.33]
[1743505376744,43.66850059,127.81,127.77,232.33]
[1743505377647,47.81057802,127.81,127.77,232.33]
[1743505378024,36.34606458,127.81,127.78,40.586272]
[1743505378229,0.063,127.82,127.81,0.14216157]
[1743505380355,0.063,127.82,127.81,7.96626157]
[1743505380827,0.063,127.82,127.81,26.758072]
[1743505381229,0.063,127.84,127.83,40.14216157]
[1743505381448,0.063,127.84,127.83,27.12216157]
[1743505382345,0.063,127.84,127.83,34.94496157]
[1743505382533,0.063,127.84,127.83,53.736772]
[1743505382737,0.063,127.84,127.83,55.242572]
[1743505382940,12.13863259,127.89,127.88,18.79181043]
[1743505383142,12.13863259,127.89,127.88,25.913972]
[1743505383547,12.13863259,127.92,127.88,25.913972]
[1743505384528,12.13863259,127.92,127.88,33.733472]
[1743505384954,12.13863259,127.92,127.91,0.28432314]
[1743505385834,0.063,127.95,127.91,0.28432314]
[1743505386033,7.8785,127.95,127.91,0.28432314]
[1743505386446,7.8785,127.95,127.92,6.96]
[1743505386856,7.8785,127.95,127.93,225.24]
[1743505388251,0.063,127.95,127.94,0.28432314]
[1743505388440,0.063,127.95,127.94,18.933972]
[1743505388755,0.063,127.95,127.94,50.60317183]
[1743505390332,0.063,127.97,127.96,20.0]
[1743505390550,0.063,127.97,127.96,66.748872]
[1743505391339,0.063,127.97,127.96,73.748872]
[1743505392061,0.063,127.97,127.96,45.933972]
[1743505392554,0.063,127.97,127.96,25.933972]
[1743505393143,0.063,127.97,127.96,7.28432314]
[1743505395167,0.063,127.97,127.96,15.09922314]
[1743505395659,0.063,127.97,127.96,53.748872]
[1743505396664,0.063,127.97,127.96,83.748872]
[1743505396865,0.063,127.97,127.96,308.828872]
[1743505397660,0.063,127.97,127.96,309.328872]
[1743505398643,0.063,127.98,127.97,19.433972]
[1743505398844,0.063,127.98,127.97,49.433972]
[1743505399361,0.063,127.98,127.97,48.933972]
[1743505399950,0.063,127.98,127.97,49.433972]
[1743505400171,0.063,128.04,128.03,18.64964886]
[1743505400377,0.063,128.04,128.03,25.64964886]
[1743505400545,0.063,128.04,128.03,33.46024886]
[1743505400748,0.063,128.06,128.05,58.933972]
[1743505400946,0.063,128.07,128.06,0.28432314]
[1743505401265,0.14216157,128.05,127.88,23.48]
[1743505401467,11.46451344,127.99,127.95,7.28]
[1743505401648,7.9103,128.0,127.95,7.28]
[1743505401853,11.46451344,127.97,127.95,7.28]
[1743505402642,19.27941344,127.96,127.95,7.28]
[1743505403761,26.12139545,127.96,127.95,7.28]
[1743505404142,26.12139545,127.96,127.89,20.0]
[1743505404450,18.30649545,127.95,127.9,7.28]
[1743505404651,18.30649545,127.94,127.9,7.28]
[1743505405046,18.30649545,127.93,127.83,27.8353]
[1743505405265,18.30649545,127.92,127.85,18.933972]
[1743505405957,18.30649545,127.91,127.85,18.933972]
[1743505406154,18.30649545,127.92,127.85,38.933972]
[1743505406875,26.12419545,127.92,127.88,0.14216157]
[1743505407057,26.12419545,127.92,127.89,7.26]
[1743505407578,18.30649545,127.91,127.89,7.26]
[1743505407786,18.30649545,127.9,127.86,225.02]
[1743505407951,18.30649545,127.87,127.86,225.02]
[1743505408152,6.3932,127.89,127.86,232.3]
[1743505408372,24.69969545,127.89,127.86,232.3]
[1743505409272,83.2799,127.92,127.87,0.28432314]
[1743505409567,18.30649545,127.92,127.87,0.28432314]
[1743505411271,24.69969545,127.93,127.87,0.28432314]
[1743505412571,18.30649545,127.92,127.87,0.28432314]
[1743505416981,89.416,127.96,127.87,26.754172]
[1743505417150,26.02249545,127.96,127.91,0.14216157]
[1743505417357,26.02249545,127.96,127.92,7.28]
[1743505418053,6.1361,127.96,127.93,0.14216157]
[1743505419784,0.063,127.97,127.93,18.933972]
[1743505419977,0.063,127.97,127.93,26.750272]
[1743505421473,18.30649545,127.95,127.94,232.38]
[1743505421673,18.30649545,127.95,127.94,225.12]
[1743505421858,18.30649545,127.95,127.94,232.38]
[1743505422267,26.12199545,127.95,127.94,232.38]
[1743505422862,32.15129545,127.95,127.94,225.12]
[1743505423058,50.94310588,127.95,127.94,225.12]
[1743505423264,18.64964886,127.94,127.92,225.12]
[1743505423565,18.64964886,127.94,127.93,7.26]
[1743505423772,20.0,127.92,127.91,225.12]
[1743505424370,27.8173,127.92,127.91,225.12]
[1743505424757,46.12379545,127.92,127.91,225.12]
[1743505424962,46.12379545,127.92,127.91,232.4]
[1743505425573,38.30649545,127.92,127.91,232.4]
[1743505425976,20.0,127.92,127.91,232.4]
[1743505426263,18.30649545,127.93,127.91,232.4]
[1743505426465,18.30649545,127.94,127.91,232.4]
[1743505427072,7.6571,127.95,127.91,240.2179]
[1743505427394,25.96359545,127.95,127.91,232.4]
[1743505428687,33.77909545,127.95,127.91,232.4]
[1743505428863,25.96359545,127.95,127.91,232.4]
[1743505429181,33.77919545,127.95,127.91,232.4]
[1743505429487,18.30649545,127.94,127.91,232.43]
[1743505430058,0.063,127.97,127.91,240.2478]
[1743505430276,18.30649545,127.96,127.91,240.2478]
[1743505430471,0.063,127.97,127.92,0.14216157]
[1743505430658,0.063,127.97,127.94,0.28432314]
[1743505431074,18.36949545,127.97,127.94,0.14216157]
[1743505431879,18.36949545,127.97,127.93,0.14216157]
[1743505432277,18.36949545,127.97,127.93,0.28432314]
[1743505432587,0.063,127.97,127.93,8.10102314]
[1743505433477,0.063,127.97,127.94,0.14216157]
[1743505435287,18.30649545,127.96,127.94,0.14216157]
[1743505435481,18.36949545,127.97,127.94,0.14216157]
[1743505436478,18.36949545,127.97,127.91,232.9677]
[1743505436479,18.30649545,127.95,127.91,232.9677]
[1743505436779,18.30649545,127.94,127.92,7.24]
[1743505437373,18.30649545,127.93,127.92,7.24]
[1743505437691,18.30649545,127.94,127.92,7.24]
[1743505438998,26.12269545,127.94,127.91,225.15]
[1743505439173,26.12269545,127.94,127.93,7.24]
[1743505439578,20.0,127.94,127.93,7.24]
[1743505439791,38.30649545,127.94,127.93,7.24]
[1743505440865,46.12259545,127.94,127.93,7.24]
[1743505441087,46.12259545,127.94,127.91,225.15]
[1743505441266,27.8161,127.94,127.93,7.24]
[1743505441473,20.0,127.92,127.91,225.15]
[1743505441673,38.30649545,127.92,127.91,232.39]
[1743505442982,46.12379545,127.92,127.91,232.39]
[1743505443384,46.12379545,127.92,127.89,225.12]
[1743505443385,8.2016,127.91,127.89,225.12]
[1743505443579,8.2016,127.91,127.9,7.24]
[1743505443778,8.2016,127.91,127.89,225.12]
[1743505443779,45.15774431,127.91,127.89,225.12]
[1743505443994,18.30649545,127.9,127.89,225.12]
[1743505444190,36.95614431,127.9,127.89,225.12]
[1743505444395,20.0,127.88,127.87,0.03]
[1743505444587,38.30649545,127.88,127.87,0.03]
[1743505444891,46.12629545,127.88,127.87,7.27]
[1743505447597,46.12629545,127.88,127.87,0.03]
[1743505447786,46.12629545,127.88,127.87,7.25]
[1743505450797,38.30649545,127.88,127.87,7.25]
[1743505451197,46.12629545,127.88,127.87,7.25]
[1743505451700,38.30649545,127.88,127.87,7.25]
[1743505452283,89.5194,127.89,127.87,7.25]
[1743505452284,18.30649545,127.89,127.87,7.25]
[1743505452686,18.30649545,127.88,127.87,7.25]
[1743505453782,26.12629545,127.88,127.87,7.25]
[1743505454201,46.12629545,127.88,127.87,7.25]
[1743505455709,39.27446595,127.88,127.87,7.25]
[1743505457997,19.27446595,127.88,127.86,225.14]
[1743505458197,11.45466595,127.87,127.86,225.14]
[1743505458394,20.0,127.85,127.81,0.03]
[1743505458595,11.45466595,127.86,127.84,225.24]
[1743505458797,11.45466595,127.86,127.81,0.03]
[1743505458798,20.0,127.84,127.83,225.24]
[1743505459016,31.45466595,127.84,127.83,225.24]
[1743505459304,31.45466595,127.84,127.83,232.46]
[1743505459807,39.27686595,127.84,127.83,232.46]
[1743505461110,11.45466595,127.85,127.83,232.46]
[1743505461292,11.45466595,127.88,127.84,0.14216157]
[1743505461491,11.45466595,127.87,127.84,0.14216157]
[1743505462411,11.45466595,127.86,127.84,0.14216157]
[1743505462600,11.45466595,127.86,127.83,232.46]
[1743505462601,11.45466595,127.85,127.83,225.24]
[1743505462801,20.0,127.85,127.84,7.2]
[1743505463111,31.45466595,127.85,127.84,7.2]
[1743505463306,20.0,127.86,127.84,7.2]
[1743505463501,11.45466595,127.85,127.84,7.2]
[1743505463804,18.33136509,127.85,127.84,7.2]
[1743505464413,18.33136509,127.86,127.84,232.48]
[1743505465593,18.33136509,127.85,127.84,232.48]
[1743505465813,20.0,127.87,127.84,232.48]
[1743505466020,18.33136509,127.85,127.84,232.48]
[1743505466514,18.33136509,127.86,127.84,232.48]
[1743505468116,18.33136509,127.85,127.84,232.48]
[1743505468609,26.15296509,127.85,127.84,232.46]
[1743505469907,26.15296509,127.85,127.84,232.44]
[1743505475214,26.15296509,127.85,127.84,225.28]
[1743505475421,26.15296509,127.85,127.84,232.44]
[1743505476616,26.15296509,127.85,127.84,232.47]
[1743505478227,18.33136509,127.85,127.84,232.47]
[1743505478522,20.0,127.85,127.84,232.47]
[1743505478723,89.5837,127.87,127.84,240.2922]
[1743505478724,81.763,127.87,127.84,240.2922]
[1743505480802,0.063,127.87,127.84,240.2922]
[1743505481003,18.39436509,127.87,127.84,240.2922]
[1743505481323,18.39436509,127.87,127.84,232.47]
[1743505481324,26.21496509,127.87,127.84,232.47]
[1743505481623,18.39436509,127.87,127.84,232.47]
[1743505482319,26.21486509,127.87,127.84,232.47]
[1743505482720,18.33136509,127.85,127.84,232.47]
[1743505482920,7.8835,127.87,127.84,232.47]
[1743505483121,18.33136509,127.86,127.84,232.47]
[1743505483827,11.45652974,127.85,127.84,225.31]
[1743505484014,11.45652974,127.85,127.84,232.45]
[1743505484401,19.27812974,127.85,127.84,232.45]
[1743505484637,19.27812974,127.85,127.84,225.31]
[1743505485128,20.0,127.82,127.81,0.03]
[1743505485438,31.45652974,127.82,127.81,225.31]
[1743505486408,39.28002974,127.82,127.81,232.45]
[1743505486607,27.8235,127.82,127.81,232.45]
[1743505486820,39.28002974,127.82,127.81,232.45]
[1743505491738,57.9296786,127.82,127.81,232.45]
[1743505491906,20.0,127.79,127.78,0.03]
[1743505492106,31.45652974,127.79,127.78,7.17]
[1743505493141,39.28182974,127.79,127.78,7.17]
[1743505494127,39.28182974,127.79,127.77,0.03]
[1743505494329,11.45652974,127.78,127.77,0.03]
[1743505495147,19.28242974,127.78,127.77,0.03]
[1743505495345,19.28242974,127.78,127.77,7.17]
[1743505495551,20.0,127.79,127.77,7.17]
[1743505495552,31.45652974,127.79,127.77,7.17]
[1743505495951,11.45652974,127.8,127.77,7.17]
[1743505497040,11.45652974,127.8,127.77,14.9964]
[1743505497547,11.45652974,127.8,127.77,7.17]
[1743505497946,11.45652974,127.8,127.77,14.9964]
[1743505498127,93.15652974,127.81,127.77,14.9964]
[1743505498331,81.7,127.81,127.78,1.70936157]
[1743505498939,81.7,127.81,127.78,9.53466157]
[1743505499249,19.28002974,127.82,127.78,9.53466157]
[1743505499934,19.28002974,127.82,127.78,1.5672]
[1743505499935,11.45652974,127.81,127.78,1.5672]
[1743505500537,11.45652974,127.81,127.78,9.393]
[1743505500930,11.45652974,127.81,127.78,9.423]
[1743505502154,11.45652974,127.81,127.78,1.5972]
[1743505502646,19.28072974,127.81,127.78,1.5972]
[1743505502852,11.45652974,127.8,127.79,7.12]
[1743505503659,19.28122974,127.8,127.79,7.12]
[1743505503859,11.45652974,127.81,127.79,7.12]
[1743505504063,7.8222,127.84,127.79,14.9452]
[1743505504243,11.45652974,127.83,127.79,14.9452]
[1743505504443,11.45652974,127.82,127.79,7.12]
[1743505505943,11.45652974,127.82,127.8,225.38]
[1743505506951,19.28012974,127.82,127.8,225.38]
[1743505507672,11.45652974,127.82,127.8,225.38]
[1743505507843,0.063,127.85,127.81,1.73016157]
[1743505508557,0.063,127.85,127.82,0.14216157]
[1743505509845,0.063,127.85,127.83,7.8228]
[1743505510064,0.063,127.85,127.84,7.12]
[1743505510952,0.063,127.85,127.84,14.9422]
[1743505511154,0.063,127.85,127.84,15.08436157]
[1743505511658,0.063,127.85,127.84,15.22652314]
[1743505511859,0.063,127.87,127.86,0.14216157]
[1743505512061,0.063,127.87,127.86,18.933972]
[1743505513246,0.063,127.91,127.87,0.14216157]
[1743505514453,0.063,127.91,127.9,0.28432314]
[1743505514665,0.063,127.91,127.9,259.087872]
[1743505514844,0.063,127.91,127.9,53.807872]
[1743505515259,0.063,127.91,127.9,61.626472]
[1743505516260,0.063,127.97,127.9,61.626472]
[1743505516261,0.063,127.97,127.94,0.28432314]
[1743505516461,0.063,127.97,127.95,7.14]
[1743505516851,0.063,127.97,127.96,225.22]
[1743505517659,0.063,127.97,127.96,225.36216157]
[1743505518967,0.063,127.97,127.96,225.22]
[1743505519947,11.51952974,127.97,127.96,225.22]
[1743505520272,11.51952974,127.97,127.96,232.34]
[1743505521272,19.33382974,127.97,127.96,232.34]
[1743505523177,0.063,127.97,127.96,232.34]
[1743505529250,0.063,127.97,127.96,240.29706157]
[1743505529472,0.063,127.97,127.96,248.69122314]
[1743505530160,0.063,127.98,127.97,0.28432314]
[1743505530357,0.063,127.98,127.97,18.933972]
[1743505530676,0.0001,127.98,127.97,18.933972]
[1743505531559,0.0001,127.98,127.97,26.748272]
[1743505535055,0.0001,127.98,127.97,27.248272]
[1743505535378,0.063,128.0,127.99,38.933972]
[1743505536555,0.063,128.0,127.99,46.747072]
[1743505536751,0.063,128.0,127.99,278.867072]
[1743505538281,0.063,128.01,128.0,41.023772]
[1743505538467,0.063,128.04,128.03,38.933972]
[1743505538772,0.063,128.04,128.03,46.744572]
[1743505539274,0.063,128.04,128.03,50.73551232]
[1743505540765,0.063,128.04,128.03,46.744572]
[1743505541983,0.063,128.04,128.03,26.744572]
[1743505542360,0.063,128.04,128.03,33.824572]
[1743505542559,0.063,128.04,128.03,26.013972]
[1743505542768,0.063,128.04,128.03,33.824572]
[1743505544181,0.063,128.04,128.03,7.20216157]
[1743505545161,0.063,128.04,128.03,7.06]
[1743505545358,0.063,128.04,128.01,0.28432314]
[1743505545669,0.063,128.04,128.02,7.08]
[1743505546084,0.063,128.04,128.03,0.14216157]
[1743505546685,0.063,128.04,128.03,0.28432314]
[1743505546868,0.063,128.04,128.03,243.853972]
[1743505547181,0.063,128.04,128.03,251.664572]
[1743505551870,0.063,128.05,128.04,38.933972]
[1743505552266,0.063,128.05,128.04,26.743972]
[1743505552774,0.063,128.05,128.04,33.823972]
[1743505553600,7.8068,128.1,128.05,0.28432314]
[1743505555086,19.32552974,128.11,128.05,0.28432314]
[1743505556005,19.32552974,128.11,128.06,7.8088]
[1743505556391,11.45652974,128.1,128.05,8.09352314]
[1743505556691,11.45652974,128.1,128.06,224.88]
[1743505558088,11.45652974,128.1,128.07,7.8082]
[1743505558273,11.51952974,128.11,128.07,7.8082]
[1743505558474,19.32532974,128.11,128.07,7.8082]
[1743505559289,11.45652974,128.1,128.06,224.88]
[1743505559493,11.45652974,128.08,128.06,224.88]
[1743505559994,11.45652974,128.07,128.06,224.88]
[1743505560288,27.01132974,128.07,128.06,231.96]
[1743505562076,27.04132974,128.07,128.0,7.8751]
[1743505562290,35.1053,128.07,128.05,224.9]
[1743505563496,35.1053,128.07,128.04,224.9]
[1743505563497,11.45652974,128.06,128.04,224.9]
[1743505563795,74.1464,128.07,128.05,7.1]
[1743505564102,20.0,128.05,128.04,224.9]
[1743505564976,31.45652974,128.05,128.04,224.9]
[1743505565299,31.45652974,128.05,128.04,231.98]
[1743505566495,39.26592974,128.05,128.04,231.98]